bitfinex/quotes_BTCUSD_20241223
["timestamp","ask_amount","ask_price","bid_price","bid_amount"]
[1734965874769,0.0473,94431.0,94405.0,0.46583932]
[1734965874770,0.03916495,94426.0,94405.0,0.46583932]
[1734965875181,0.00121206,94406.0,94405.0,0.46583932]
[1734965875617,0.00121206,94406.0,94405.0,0.47483932]
[1734965875816,0.00121206,94406.0,94405.0,0.49382582]
[1734965876219,0.00121206,94406.0,94405.0,0.55466087]
[1734965876467,0.00121206,94406.0,94405.0,0.48482582]
[1734965877082,0.288662,94446.0,94415.0,0.21183]
[1734965877279,0.0769,94446.0,94415.0,0.31581632]
[1734965877492,0.211777,94439.0,94415.0,0.31581632]
[1734965877698,0.211777,94439.0,94415.0,0.10398632]
[1734965877699,0.03916495,94431.0,94415.0,0.10398632]
[1734965878120,0.25092995,94445.0,94415.0,0.10398632]
[1734965878338,0.03916495,94430.0,94415.0,0.10698632]
[1734965878539,0.00107,94416.0,94415.0,0.11298632]
[1734965878747,0.00107,94416.0,94415.0,0.009]
[1734965878955,0.00107,94416.0,94415.0,0.11298632]
[1734965879797,0.00103,94416.0,94415.0,0.11298632]
[1734965880652,0.001,94416.0,94415.0,0.26298632]
[1734965881278,0.001,94416.0,94415.0,0.28656129]
[1734965882084,0.001,94416.0,94415.0,0.06256129]
[1734965882503,0.25906,94447.0,94415.0,0.06256129]
[1734965882711,0.00015975,94439.0,94415.0,0.06256129]
[1734965882920,0.00015975,94439.0,94435.0,0.15]
[1734965883122,0.00015975,94439.0,94434.0,0.211787]
[1734965883123,0.00015975,94439.0,94437.0,0.15]
[1734965883330,5.975e-05,94439.0,94438.0,0.46576532]
[1734965884588,5.975e-05,94439.0,94438.0,0.52660037]
[1734965884798,0.21166,94491.0,94438.0,0.52660037]
[1734965884799,0.1235855,94511.0,94458.0,0.06083505]
[1734965885018,0.423252,94507.0,94471.0,0.15]
[1734965885233,0.1235855,94511.0,94497.0,0.15]
[1734965885234,0.0456855,94511.0,94497.0,0.15]
[1734965885449,0.00079653,94500.0,94499.0,0.15]
[1734965885664,0.00079653,94500.0,94499.0,0.25398632]
[1734965885886,8.55e-05,94511.0,94501.0,0.06083505]
[1734965886109,0.0779,94549.0,94501.0,0.06083505]
[1734965886110,0.0779,94549.0,94515.0,0.06083505]
[1734965886310,0.0779,94549.0,94515.0,0.52642737]
[1734965886541,0.00034337,94516.0,94515.0,0.52642737]
[1734965886746,0.211496,94565.0,94515.0,0.52642737]
[1734965886747,0.0473,94575.0,94532.0,0.15]
[1734965887015,0.0473,94575.0,94543.0,0.361543]
[1734965887227,0.03916495,94553.0,94543.0,0.10398632]
[1734965887448,0.03916495,94553.0,94537.0,0.15]
[1734965887678,0.211521,94554.0,94515.0,0.002]
[1734965887679,8.54e-05,94534.0,94515.0,0.002]
[1734965887897,0.03916495,94519.0,94515.0,0.002]
[1734965888113,0.03916495,94529.0,94515.0,0.002]
[1734965888322,0.03916495,94516.0,94515.0,0.002]
[1734965888535,0.03916495,94460.0,94450.0,0.5]
[1734965888748,0.03916495,94475.0,94450.0,0.5]
[1734965888952,0.211658,94492.0,94451.0,0.21175]
[1734965889163,0.211658,94492.0,94475.0,0.211694]
[1734965889164,0.10398632,94491.0,94475.0,0.211694]
[1734965889372,0.03916495,94493.0,94480.0,0.211682]
[1734965889582,0.1237,94497.0,94482.0,0.21168]
[1734965889801,0.03916495,94483.0,94482.0,0.21168]
[1734965890013,0.1237,94497.0,94482.0,0.21168]
[1734965890230,0.03916495,94484.0,94450.0,0.5]
[1734965890468,0.03916495,94473.0,94455.0,0.03026138]
[1734965890681,0.03916495,94473.0,94450.0,0.5]
[1734965890682,0.03916495,94460.0,94450.0,0.5]
[1734965890895,0.1,94479.0,94450.0,0.5]
[1734965890896,0.003,94475.0,94450.0,0.50153253]
[1734965891106,0.003,94475.0,94467.0,0.211713]
[1734965891311,0.003,94475.0,94468.0,0.10398632]
[1734965891559,0.003,94475.0,94466.0,0.211716]
[1734965891768,0.003,94484.0,94466.0,0.423432]
[1734965891979,0.003,94484.0,94450.0,0.50053253]
[1734965891980,0.03916495,94479.0,94464.0,0.137719]
[1734965892193,0.03916495,94479.0,94450.0,0.50053253]
[1734965892194,0.002,94475.0,94450.0,0.52972227]
[1734965892400,0.213697,94475.0,94452.0,0.15]
[1734965892631,0.03916495,94471.0,94450.0,0.50053253]
[1734965892840,0.03916495,94471.0,94450.0,0.00053253]
[1734965893057,0.211724,94463.0,94450.0,0.00053253]
[1734965893270,0.211748,94452.0,94450.0,0.00053253]
[1734965893477,0.03916495,94452.0,94450.0,0.00053253]
[1734965893694,0.03916495,94463.0,94450.0,0.00053253]
[1734965893908,0.211727,94462.0,94450.0,0.00053253]
[1734965894330,0.03916495,94452.0,94450.0,0.00253253]
[1734965894538,0.25091495,94451.0,94450.0,0.00253253]
[1734965894749,0.0462,94456.0,94450.0,0.00253253]
[1734965894970,0.0462,94456.0,94450.0,0.10651885]
[1734965895204,0.211714,94467.0,94450.0,0.00053253]
[1734965895415,0.001,94462.0,94450.0,0.21228353]
[1734965895629,0.03916495,94459.0,94450.0,0.00053253]
[1734965896049,0.423468,94458.0,94450.0,0.00053253]
[1734965896495,0.211747,94453.0,94450.0,0.00053253]
[1734965896996,0.0782,94453.0,94434.0,0.07653253]
[1734965897216,0.0782,94453.0,94433.0,0.00015968]
[1734965897217,0.03916495,94446.0,94433.0,0.00015968]
[1734965897417,0.03916495,94452.0,94434.0,0.211788]
[1734965897624,0.0782,94453.0,94434.0,0.211788]
[1734965897828,0.25091395,94452.0,94433.0,0.00015968]
[1734965898051,0.03916495,94437.0,94433.0,0.00015968]
[1734965898262,0.0782,94453.0,94433.0,0.104146]
[1734965898467,0.0782,94453.0,94434.0,0.10398632]
[1734965898671,0.03916495,94456.0,94441.0,0.21177]
[1734965899150,0.03916495,94459.0,94441.0,0.211771]
[1734965899352,0.211734,94458.0,94437.0,0.15]
[1734965899526,0.211749,94452.0,94437.0,0.15]
[1734965899733,0.03916495,94452.0,94433.0,0.00015968]
[1734965899941,0.211763,94445.0,94433.0,0.00015968]
[1734965900145,0.03916495,94456.0,94434.0,0.211788]
[1734965900471,0.03916495,94442.0,94433.0,0.00615968]
[1734965900667,0.03916495,94444.0,94433.0,0.00615968]
[1734965900820,0.211764,94445.0,94433.0,0.00615968]
[1734965900821,0.03916495,94442.0,94433.0,0.00615968]
[1734965901023,0.03916495,94442.0,94433.0,0.00015968]
[1734965901254,0.211784,94436.0,94433.0,0.00015968]
[1734965901614,0.03916495,94440.0,94433.0,0.00015968]
[1734965901828,0.03916495,94435.0,94433.0,0.00015968]
[1734965902037,0.25095295,94434.0,94433.0,0.00015968]
[1734965902645,0.03916495,94434.0,94433.0,0.00015968]
[1734965902867,0.03916495,94434.0,94433.0,0.00415968]
[1734965903087,0.03916495,94432.0,94416.0,0.211826]
[1734965903294,0.0498,94437.0,94416.0,0.211826]
[1734965903295,0.03916495,94426.0,94416.0,0.211826]
[1734965903503,0.03916495,94425.0,94412.0,0.10398632]
[1734965903715,0.03916495,94413.0,94412.0,0.10398632]
[1734965903924,0.25099995,94413.0,94412.0,0.10398632]
[1734965904135,0.0390547,94413.0,94412.0,0.10398632]
[1734965904344,0.0390547,94424.0,94412.0,0.10398632]
[1734965904552,0.0390547,94415.0,94412.0,0.10398632]
[1734965904764,0.0385192,94413.0,94412.0,0.10398632]
[1734965905175,0.0381412,94413.0,94412.0,0.10398632]
[1734965905620,0.0365662,94413.0,94412.0,0.10398632]
[1734965905845,0.211835,94413.0,94412.0,0.10398632]
[1734965906053,0.0365662,94413.0,94412.0,0.10398632]
[1734965906265,0.2534012,94413.0,94412.0,0.10398632]
[1734965906472,0.0357787,94412.0,94411.0,0.00015975]
[1734965906955,0.2471432,94412.0,94411.0,0.00015975]
[1734965907167,0.29304082,94412.0,94411.0,0.00015975]
[1734965907375,0.211871,94397.0,94389.0,0.04]
[1734965907582,0.211886,94390.0,94389.0,0.04]
[1734965907796,0.2471922,94390.0,94389.0,0.04]
[1734965908005,0.0353062,94395.0,94389.0,0.04]
[1734965908205,0.0353062,94399.0,94389.0,0.04]
[1734965908417,0.211866,94399.0,94389.0,0.04]
[1734965908624,0.0353062,94398.0,94389.0,0.04]
[1734965909457,0.0353062,94392.0,94389.0,0.04]
[1734965909662,0.0353062,94390.0,94389.0,0.04]
[1734965910722,0.0353062,94390.0,94389.0,0.041]
[1734965911088,0.0353062,94390.0,94389.0,0.04]
[1734965911295,0.0353062,94390.0,94389.0,0.042]
[1734965911468,0.08121232,94390.0,94389.0,0.042]
[1734965911694,0.0353062,94390.0,94389.0,0.042]
[1734965911917,0.21185,94407.0,94373.0,0.48271234]
[1734965912118,0.211841,94410.0,94394.0,0.211877]
[1734965912279,0.03027007,94428.0,94395.0,0.10398632]
[1734965912280,0.211805,94427.0,94395.0,0.10398632]
[1734965912489,0.03027007,94428.0,94394.0,0.48271234]
[1734965912490,0.0353062,94410.0,94394.0,0.48271234]
[1734965912728,0.2471782,94397.0,94394.0,0.48271234]
[1734965912927,0.0353062,94395.0,94394.0,0.48271234]
[1734965913767,0.0353062,94391.0,94365.0,0.361941]
[1734965913992,0.211902,94383.0,94370.0,0.21193]
[1734965914210,0.0353062,94390.0,94389.0,0.000171]
[1734965916903,0.0403062,94390.0,94389.0,0.000171]
[1734965917556,0.0353062,94390.0,94389.0,0.000171]
[1734965917774,0.1709392,94398.0,94389.0,0.000171]
[1734965917974,0.10398632,94397.0,94389.0,0.000171]
[1734965918238,0.1,94387.0,94374.0,0.00015981]
[1734965918451,0.68762,94375.0,94374.0,0.00015981]
[1734965918672,0.212026,94328.0,94320.0,0.0001708]
[1734965918887,0.212034,94325.0,94320.0,0.10415712]
[1734965919091,0.212034,94325.0,94320.0,0.0001708]
[1734965919092,0.424068,94325.0,94320.0,0.0001708]
[1734965919311,0.0779,94335.0,94320.0,0.0001708]
[1734965919523,0.52308424,94314.0,94310.0,0.212066]
[1734965919728,0.52308424,94314.0,94302.0,0.02922034]
[1734965919940,0.52308424,94314.0,94302.0,0.00053273]
[1734965920145,0.212077,94305.0,94302.0,0.00053273]
[1734965920355,0.31604532,94313.0,94302.0,0.00053273]
[1734965920563,0.212075,94306.0,94302.0,0.00053273]
[1734965920784,0.0499,94303.0,94302.0,0.00053273]
[1734965920996,0.0499,94303.0,94294.0,0.0001708]
[1734965920997,0.1,94295.0,94294.0,0.0001708]
[1734965921202,0.1314,94303.0,94294.0,0.00033071]
[1734965921853,0.212084,94302.0,94294.0,0.00033071]
[1734965922112,0.212084,94302.0,94282.0,0.212128]
[1734965922272,0.212097,94297.0,94265.0,0.33978976]
[1734965922473,0.212099,94296.0,94282.0,0.023]
[1734965922674,0.212088,94301.0,94282.0,0.023]
[1734965922675,0.212089,94300.0,94282.0,0.023]
[1734965922991,0.212104,94294.0,94281.0,0.023]
[1734965923168,0.212103,94294.0,94281.0,0.023]
[1734965923374,0.006,94297.0,94282.0,0.10398632]
[1734965923597,0.006,94297.0,94290.0,0.21211]
[1734965923798,0.00459526,94297.0,94290.0,0.21211]
[1734965923999,0.00459526,94297.0,94279.0,0.212135]
[1734965924201,0.00459526,94297.0,94286.0,0.212118]
[1734965924374,0.00459526,94297.0,94266.0,0.15]
[1734965924566,0.21669126,94297.0,94282.0,0.023]
[1734965924761,0.00459526,94297.0,94283.0,0.212127]
[1734965924958,0.21669226,94297.0,94282.0,0.023]
[1734965925364,0.21669226,94297.0,94271.0,0.212154]
[1734965925365,0.31608432,94296.0,94271.0,0.212154]
[1734965925576,0.212136,94279.0,94263.0,0.0144011]
[1734965925777,0.212127,94283.0,94265.0,0.212167]
[1734965926179,0.212127,94283.0,94267.0,0.212163]
[1734965926381,0.212102,94294.0,94268.0,0.10398632]
[1734965926792,0.21212,94287.0,94271.0,0.023]
[1734965927026,0.15,94302.0,94271.0,0.023]
[1734965927239,0.212112,94290.0,94265.0,0.023]
[1734965927442,0.15,94300.0,94278.0,0.023]
[1734965927646,0.21212,94286.0,94278.0,0.023]
[1734965927850,0.212132,94281.0,94278.0,0.023]
[1734965928057,0.212124,94285.0,94265.0,0.212167]
[1734965928270,0.212135,94280.0,94266.0,0.212165]
[1734965928478,0.15,94296.0,94265.0,0.0001712]
[1734965928677,0.212102,94294.0,94265.0,0.0001712]
[1734965928878,0.16677473,94293.0,94265.0,0.0001712]
[1734965929197,0.212109,94291.0,94268.0,0.001]
[1734965929465,0.212146,94275.0,94265.0,0.0231712]
[1734965929647,0.212146,94275.0,94265.0,0.0001712]
[1734965929974,0.212122,94285.0,94265.0,0.0001712]
[1734965930193,0.25398632,94290.0,94267.0,0.023]
[1734965930194,0.15,94290.0,94267.0,0.023]
[1734965930405,0.004,94294.0,94281.0,0.023]
[1734965930615,0.212104,94293.0,94281.0,0.023]
[1734965930826,0.004,94294.0,94276.0,0.023]
[1734965931036,0.212124,94285.0,94270.0,0.023]
[1734965931251,0.212124,94285.0,94269.0,0.15]
[1734965931252,0.212053,94316.0,94282.0,0.212129]
[1734965931461,0.10398632,94333.0,94298.0,0.023]
[1734965931671,0.212059,94314.0,94298.0,0.235091]
[1734965931877,0.424118,94314.0,94298.0,0.235091]
[1734965932099,0.424118,94314.0,94300.0,0.212089]
[1734965932100,0.212059,94314.0,94300.0,0.212089]
[1734965932532,0.212062,94312.0,94286.0,0.212118]
[1734965932738,0.10398632,94311.0,94298.0,0.001]
[1734965932951,0.10398632,94311.0,94284.0,0.15]
[1734965933175,0.15,94310.0,94298.0,0.001]
[1734965933442,0.15,94308.0,94298.0,0.001]
[1734965934062,0.212086,94302.0,94298.0,0.001]
[1734965934482,0.424172,94302.0,94286.0,0.212119]
[1734965934708,0.212086,94302.0,94287.0,0.023]
[1734965934914,0.212096,94297.0,94286.0,0.001]
[1734965935124,0.31606332,94305.0,94284.0,0.023]
[1734965935334,0.212083,94303.0,94290.0,0.023]
[1734965935541,0.212072,94308.0,94293.0,0.023]
[1734965935744,0.0001592,94314.0,94301.0,0.023]
[1734965936176,0.001,94302.0,94279.0,0.03023291]
[1734965936358,0.212062,94312.0,94294.0,0.023]
[1734965936784,0.212073,94308.0,94296.0,0.023]
[1734965937073,0.0001592,94314.0,94281.0,0.33978976]
[1734965937284,0.0001592,94314.0,94282.0,0.12698632]
[1734965937479,0.0001592,94314.0,94293.0,0.212104]
[1734965937719,0.10398632,94313.0,94290.0,0.002]
[1734965937932,0.212095,94297.0,94290.0,0.002]
[1734965938133,0.212095,94297.0,94282.0,0.12698632]
[1734965938339,0.212118,94288.0,94282.0,0.023]
[1734965938548,0.0827,94296.0,94281.0,0.001]
[1734965938761,0.21211,94291.0,94276.0,0.212142]
[1734965939169,0.21211,94291.0,94290.0,0.001]
[1734965939375,0.0827,94296.0,94265.0,0.02991976]
[1734965939603,0.0827,94296.0,94267.0,0.212162]
[1734965939816,0.21212,94287.0,94281.0,0.001]
[1734965940069,0.212129,94282.0,94281.0,0.001]
[1734965941074,0.212122,94285.0,94265.0,0.0001712]
[1734965941293,0.009,94291.0,94276.0,0.001]
[1734965941511,0.212126,94284.0,94270.0,0.212155]
[1734965941722,0.009,94291.0,94279.0,0.212135]
[1734965941929,0.001,94282.0,94272.0,0.023]
[1734965942183,0.212115,94289.0,94268.0,0.023]
[1734965942398,0.2948,94296.0,94265.0,0.00033111]
[1734965942399,0.0827,94296.0,94265.0,0.00033111]
[1734965942602,0.0827,94296.0,94269.0,0.10398632]
[1734965943108,0.212115,94289.0,94271.0,0.212154]
[1734965943324,0.212116,94288.0,94271.0,0.212154]
[1734965943532,0.212116,94288.0,94269.0,0.10398632]
[1734965943533,0.212116,94288.0,94272.0,0.212151]
[1734965943763,0.2121,94295.0,94272.0,0.212151]
[1734965943964,0.212115,94289.0,94276.0,0.212142]
[1734965944582,0.0827,94296.0,94279.0,0.212136]
[1734965944583,0.001,94288.0,94279.0,0.212136]
[1734965944765,0.001,94288.0,94278.0,0.023]
[1734965944766,0.001,94288.0,94281.0,0.212131]
[1734965945008,8.57e-05,94307.0,94271.0,0.33978976]
[1734965945217,8.57e-05,94307.0,94284.0,0.33978976]
[1734965945431,8.57e-05,94307.0,94304.0,0.212078]
[1734965945640,8.57e-05,94307.0,94291.0,0.33978976]
[1734965945868,8.57e-05,94307.0,94292.0,0.15]
[1734965946113,8.57e-05,94307.0,94293.0,0.212104]
[1734965946345,8.57e-05,94307.0,94294.0,0.10398632]
[1734965946584,8.57e-05,94307.0,94306.0,0.72486476]
[1734965946795,0.0002449,94307.0,94306.0,0.82885108]
[1734965946969,0.0002449,94307.0,94306.0,0.84981]
[1734965947326,0.0472,94341.0,94335.0,0.212009]
[1734965947549,0.212001,94339.0,94308.0,0.33978976]
[1734965947747,0.212001,94339.0,94305.0,0.03672399]
[1734965947748,0.15,94336.0,94305.0,0.03672399]
[1734965947947,0.15,94336.0,94304.0,0.212077]
[1734965947948,0.002,94307.0,94304.0,0.212077]
[1734965948179,0.212041,94322.0,94306.0,0.212075]
[1734965948416,0.212052,94317.0,94295.0,0.212099]
[1734965948717,0.10398632,94332.0,94296.0,0.10398632]
[1734965948974,0.424038,94331.0,94296.0,0.10398632]
[1734965949174,0.002,94307.0,94298.0,0.212093]
[1734965949378,0.002,94307.0,94306.0,0.212073]
[1734965950605,0.212032,94326.0,94312.0,0.21206]
[1734965951052,0.212038,94323.0,94307.0,0.212073]
[1734965951482,8.57e-05,94317.0,94299.0,0.33978976]
[1734965951864,8.57e-05,94317.0,94301.0,0.023]
[1734965952069,0.0090857,94317.0,94302.0,0.10398632]
[1734965952340,8.57e-05,94317.0,94309.0,0.212068]
[1734965952765,0.0050857,94317.0,94308.0,0.21207]
[1734965953176,0.0090857,94317.0,94308.0,0.42414]
[1734965953393,0.212065,94311.0,94299.0,0.33978976]
[1734965953603,0.0833,94310.0,94291.0,0.212108]
[1734965953819,0.212079,94305.0,94291.0,0.212108]
[1734965954229,0.212079,94305.0,94291.0,0.25426966]
[1734965954437,0.212091,94300.0,94283.0,0.212125]
[1734965954883,0.424182,94300.0,94287.0,0.212117]
[1734965955097,0.212082,94304.0,94287.0,0.212117]
[1734965955310,0.212082,94304.0,94270.0,0.15564184]
[1734965955311,0.212091,94300.0,94261.0,0.33978976]
[1734965955523,0.212093,94298.0,94269.0,0.212156]
[1734965955729,0.31607932,94298.0,94274.0,0.212145]
[1734965955935,0.31607932,94298.0,94296.0,0.0021592]
[1734965956178,0.31607932,94298.0,94296.0,0.0001592]
[1734965956360,0.10531187,94297.0,94296.0,0.0001592]
[1734965956572,0.25531187,94297.0,94296.0,0.0001592]
[1734965956783,0.25531187,94297.0,94265.0,0.0001712]
[1734965956784,0.212165,94266.0,94265.0,0.0001712]
[1734965957001,0.31615132,94266.0,94265.0,0.00033111]
[1734965957646,0.261761,94268.0,94265.0,0.00033111]
[1734965957647,0.0496,94268.0,94265.0,0.00033111]
[1734965958090,0.212121,94286.0,94266.0,0.212165]
[1734965958302,0.212121,94286.0,94272.0,0.21215]
[1734965959147,0.212123,94285.0,94265.0,0.00033111]
[1734965959353,0.212129,94283.0,94265.0,0.00033111]
[1734965959563,0.10398632,94282.0,94266.0,0.212165]
[1734965959768,0.212131,94281.0,94266.0,0.212165]
[1734965959971,0.31611732,94281.0,94266.0,0.212165]
[1734965960231,0.31611732,94281.0,94266.0,0.42433]
[1734965960646,0.52824932,94281.0,94266.0,0.212165]
[1734965960860,0.52824932,94281.0,94265.0,0.00033111]
[1734965960861,0.212144,94276.0,94265.0,0.00033111]
[1734965961078,0.10398632,94281.0,94265.0,0.00033111]
[1734965961289,0.0784,94297.0,94266.0,0.10398632]
[1734965961495,0.0784,94297.0,94294.0,0.2121]
[1734965961698,0.09236407,94321.0,94283.0,0.33978976]
[1734965961906,0.09236407,94321.0,94315.0,0.212054]
[1734965962105,0.09236407,94321.0,94310.0,0.212066]
[1734965962311,0.09236407,94321.0,94286.0,0.33978976]
[1734965962518,0.0785,94324.0,94293.0,0.023]
[1734965962763,0.005,94297.0,94296.0,0.212098]
[1734965962963,0.00024549,94317.0,94310.0,0.212065]
[1734965963163,0.00024549,94317.0,94297.0,0.212095]
[1734965963377,0.00024549,94317.0,94300.0,0.04397748]
[1734965963587,0.00024549,94317.0,94314.0,0.424113]
[1734965963808,0.00024549,94317.0,94316.0,0.212053]
[1734965964018,0.00024549,94317.0,94316.0,0.31603932]
[1734965964217,0.09236407,94356.0,94355.0,0.211965]
[1734965964426,0.197854,94364.0,94361.0,0.1]
[1734965964630,0.197854,94364.0,94363.0,0.273]
[1734965964631,2.2e-07,94364.0,94363.0,0.273]
[1734965964836,0.09305812,94371.0,94370.0,0.61278976]
[1734965965050,0.00054918,94371.0,94370.0,0.71677608]
[1734965965254,8.56e-05,94390.0,94389.0,0.173]
[1734965965461,0.00024544,94390.0,94389.0,0.384889]
[1734965966085,0.00024544,94390.0,94389.0,0.361889]
[1734965966287,0.00024544,94390.0,94388.0,0.33978976]
[1734965966742,0.00024544,94390.0,94370.0,0.58970286]
[1734965966945,0.00024544,94390.0,94387.0,0.211892]
[1734965967148,0.00524544,94390.0,94387.0,0.211892]
[1734965967518,0.00524544,94390.0,94385.0,0.423792]
[1734965968375,0.00024544,94390.0,94385.0,0.423792]
[1734965968594,0.00024544,94390.0,94388.0,0.007]
[1734965968802,0.00124544,94390.0,94389.0,0.211889]
[1734965969002,0.00024544,94390.0,94389.0,0.211889]
[1734965969815,0.00124544,94390.0,94389.0,0.211889]
[1734965970193,0.00124544,94390.0,94389.0,0.31587532]
[1734965970380,0.00124544,94390.0,94389.0,0.65566508]
[1734965970780,0.00124544,94390.0,94389.0,0.55167876]
[1734965971261,0.00124544,94390.0,94389.0,0.65566508]
[1734965971473,0.00124544,94390.0,94389.0,0.82966508]
[1734965971673,0.00024544,94390.0,94389.0,0.82866508]
[1734965972083,8.55e-05,94402.0,94401.0,0.211862]
[1734965972281,8.55e-05,94402.0,94401.0,0.82863808]
[1734965973536,8.55e-05,94402.0,94401.0,0.70165176]
[1734965974110,8.55e-05,94402.0,94401.0,0.55165176]
[1734965975580,8.55e-05,94402.0,94401.0,0.67863808]
[1734965975794,8.55e-05,94402.0,94401.0,0.55165176]
[1734965976313,8.55e-05,94412.0,94411.0,0.211839]
[1734965976538,8.55e-05,94412.0,94407.0,0.211848]
[1734965976760,8.55e-05,94412.0,94407.0,0.423695]
[1734965977066,8.55e-05,94412.0,94409.0,0.211844]
[1734965977276,8.55e-05,94412.0,94409.0,0.31583032]
[1734965977482,8.55e-05,94412.0,94409.0,0.52767432]
[1734965977654,8.55e-05,94412.0,94409.0,0.423688]
[1734965977871,8.55e-05,94412.0,94406.0,0.211849]
[1734965978522,8.55e-05,94412.0,94410.0,0.211839]
[1734965979946,8.55e-05,94412.0,94410.0,0.213839]
[1734965980354,8.55e-05,94412.0,94411.0,0.10398632]
[1734965981589,8.55e-05,94412.0,94410.0,0.002]
[1734965981772,8.55e-05,94412.0,94404.0,0.211854]
[1734965981973,0.0070855,94412.0,94411.0,0.001]
[1734965982430,8.55e-05,94412.0,94399.0,0.04404513]
[1734965982628,8.55e-05,94412.0,94411.0,0.003]
[1734965982882,8.55e-05,94412.0,94400.0,0.211864]
[1734965983081,8.55e-05,94412.0,94405.0,0.211852]
[1734965983514,8.55e-05,94412.0,94409.0,0.211842]
[1734965983843,8.55e-05,94412.0,94401.0,0.023]
[1734965984042,8.55e-05,94412.0,94397.0,0.20528828]
[1734965984043,8.55e-05,94412.0,94407.0,0.211848]
[1734965984323,0.0020855,94412.0,94407.0,0.211848]
[1734965984523,0.0020855,94412.0,94402.0,0.10398632]
[1734965984524,8.55e-05,94412.0,94406.0,0.211849]
[1734965984744,8.55e-05,94412.0,94409.0,0.005]
[1734965985074,8.55e-05,94412.0,94408.0,0.211846]
[1734965985282,0.0030855,94412.0,94408.0,0.211846]
[1734965985777,0.0030855,94412.0,94405.0,0.023]
[1734965985961,0.0030855,94412.0,94407.0,0.023]
[1734965986163,8.55e-05,94412.0,94407.0,0.023]
[1734965986813,8.55e-05,94412.0,94401.0,0.023]
[1734965987012,0.20696099,94416.0,94403.0,0.023]
[1734965987378,0.1259,94415.0,94405.0,0.023]
[1734965987547,0.1259,94415.0,94405.0,0.12698632]
[1734965988016,0.1259,94415.0,94409.0,0.006]
[1734965988221,0.1259,94415.0,94405.0,0.12698632]
[1734965988408,0.1259,94415.0,94407.0,0.023]
[1734965988551,0.1309,94415.0,94408.0,0.211846]
[1734965988753,0.1309,94415.0,94407.0,0.234847]
[1734965989735,0.1309,94415.0,94405.0,0.10398632]
[1734965989736,0.1259,94415.0,94406.0,0.023]
[1734965989943,0.1259,94415.0,94406.0,0.33883632]
[1734965990556,0.1259,94415.0,94406.0,0.12698632]
[1734965991158,0.1259,94415.0,94402.0,0.023]
[1734965991364,0.1259,94415.0,94403.0,0.52770032]
[1734965991562,0.1339,94415.0,94405.0,0.001]
[1734965991798,0.423665,94414.0,94406.0,0.023]
[1734965992141,0.423665,94414.0,94401.0,0.18305046]
[1734965992142,0.1339,94415.0,94402.0,0.211859]
[1734965992340,0.1339,94415.0,94403.0,0.10398632]
[1734965992526,0.1259,94415.0,94407.0,0.211848]
[1734965993159,0.00015969,94420.0,94409.0,0.211844]
[1734965993309,0.00015969,94420.0,94417.0,0.211826]
[1734965993507,0.00015969,94420.0,94416.0,0.211828]
[1734965993711,0.00015969,94420.0,94409.0,0.10398632]
[1734965994115,0.00015969,94420.0,94412.0,0.211836]
[1734965994325,0.00015969,94420.0,94416.0,0.211827]
[1734965995074,0.00115969,94420.0,94409.0,0.14642133]
[1734965995272,0.00015969,94420.0,94409.0,0.14642133]
[1734965995484,0.00015969,94420.0,94414.0,0.211831]
[1734965995688,0.00815969,94420.0,94418.0,0.211823]
[1734965995823,0.00815969,94420.0,94418.0,0.31580932]
[1734965996029,0.00815969,94420.0,94418.0,0.10398632]
[1734965996232,0.01415969,94420.0,94415.0,0.16159413]
[1734965996981,0.01415969,94420.0,94415.0,0.08759413]
[1734965997563,0.00015969,94420.0,94415.0,0.08759413]
[1734965997798,0.00015969,94420.0,94418.0,0.002]
[1734965998015,0.00015969,94420.0,94416.0,0.211828]
[1734965998221,0.00015969,94420.0,94415.0,0.29942413]
[1734965998442,0.00015969,94420.0,94415.0,0.30442413]
[1734965998616,0.00015969,94420.0,94415.0,0.51125413]
[1734965998984,0.423643,94419.0,94418.0,0.005]
[1734965999101,0.211821,94419.0,94418.0,0.005]
[1734965999307,0.211821,94419.0,94415.0,0.08759413]
[1734965999511,0.21144876,94419.0,94415.0,0.09259413]
[1734965999717,0.42327076,94419.0,94415.0,0.005]
[1734965999922,0.21144876,94419.0,94415.0,0.005]
[1734966000115,0.211821,94419.0,94415.0,0.005]
[1734966000332,0.211821,94419.0,94400.0,0.05047923]
[1734966000333,0.211859,94402.0,94400.0,0.05047923]
[1734966000537,0.211859,94402.0,94390.0,0.04293418]
[1734966000538,0.2783,94401.0,94390.0,0.04293418]
[1734966000735,0.211882,94392.0,94389.0,0.0001712]
[1734966000943,0.461886,94390.0,94389.0,0.0001712]
[1734966001137,0.10398632,94390.0,94389.0,0.0001712]
[1734966001475,0.1283,94401.0,94389.0,0.0001712]
[1734966001698,0.211864,94400.0,94389.0,0.0001712]
[1734966001895,0.1283,94401.0,94389.0,0.0011712]
[1734966002249,0.211886,94391.0,94389.0,0.0011712]
[1734966002880,0.211886,94391.0,94389.0,0.0001712]
[1734966002881,0.10398632,94390.0,94389.0,0.0001712]
[1734966003096,0.10531059,94390.0,94347.0,0.08759413]
[1734966003301,0.10398632,94390.0,94367.0,0.00015984]
[1734966003512,0.211908,94381.0,94367.0,0.00015984]
[1734966003714,0.211883,94392.0,94368.0,0.10398632]
[1734966003915,0.211883,94392.0,94376.0,0.211916]
[1734966004137,0.211881,94393.0,94389.0,0.001]
[1734966004370,0.1,94412.0,94389.0,0.001]
[1734966004371,0.0795,94417.0,94390.0,0.25398632]
[1734966004581,0.0795,94417.0,94393.0,0.10398632]
[1734966004802,0.0795,94417.0,94394.0,0.211877]
[1734966005008,0.10531022,94416.0,94386.0,0.211894]
[1734966005219,0.10531022,94416.0,94375.0,0.08759413]
[1734966005470,0.10531042,94416.0,94379.0,0.211911]
[1734966005678,0.211877,94395.0,94380.0,0.15]
[1734966006092,0.211877,94395.0,94376.0,0.10398632]
[1734966006093,0.31586332,94395.0,94393.0,0.001]
[1734966006306,0.211829,94416.0,94367.0,0.00015984]
[1734966006307,0.211936,94368.0,94367.0,0.00015984]
[1734966006959,0.59632232,94368.0,94367.0,0.00015984]
[1734966007380,0.48837264,94368.0,94328.0,0.02095853]